[Event "CZE-ch U12 2020"]
[Site "Kouty nad Desnou"]
[Date "2020.03.09"]
[Round "3.9"]
[White "Tichy, Tomas"]
[Black "Sedmihradsky, Tomas"]
[Result "1/2-1/2"]
[ECO "D00"]
[WhiteElo "1810"]
[BlackElo "1024"]
[Annotator "NA"]
[PlyCount "78"]
[EventDate "2020.03.07"]
[EventCountry "CZE"]
[SourceTitle "playchess.com"]
[Source "ChessBase"]
[SourceQuality "1"]
[TimeControl "5400+30"]

{[%evp 11,64,44,48,42,108,95,127,79,155,165,143,164,150,27,34,48,27,30,56,44,37,0,33,9,14,4,20,0,0,-30,-7,-93,-64,-291,-176,-201,-45,-233,-59,-104,-79,-84,23,-231,-161,32767,-49,32767,-62,-144,-75,32767,32767,-77,0]} 1. d4 {[%emt 0:00:00]} d5 {[%emt 0:00:00]} 2. e3 {[%emt 0:00:00]} Bf5 {[%emt 0:00:46]} 3. Nf3 {[%emt 0:00:11]} Nf6 {[%emt 0:01:30]} 4. c4 {[%emt 0:00:36]} Bxb1 {[%emt 0:00:27]} 5. Rxb1 {[%emt 0:00:19]} e6 {[%emt 0:00:52]} 6. Bd3 {[%emt 0:08:29] [#] D04: Colle System.} (6. b4 $16) 6... c5 $146 {[%emt 0:05:17]} ({Predecessor:} 6... Nc6 7. a3 dxc4 8. Bxc4 Bd6 9. O-O O-O 10. Qc2 Na5 11. Bd3 h6 12. e4 Be7 {0-1 (65) Nowacka,D (1439)-Radecki,W (1818) Warszawa 2017}) 7. O-O {[%emt 0:03:52]} Qc7 {[%emt 0:01:08]} (7... dxc4 $14 8. Bxc4 cxd4) 8. b3 {[%emt 0:02:54]} Nbd7 {[%emt 0:03:03]} 9. Bb2 {[%emt 0:06:22]} Bd6 {[%emt 0:02:59]} (9... dxc4 $142 10. Bxc4 (10. bxc4 Bd6 $14) 10... Be7) 10. cxd5 {[%emt 0:03:13]} exd5 {[%emt 0:02:17]} 11. dxc5 {[%emt 0:03:56]} Bxc5 {[%emt 0:02:11]} 12. Bxf6 {[%emt 0:05:05]} (12. Bb5 $16 O-O 13. Qc2) 12... Nxf6 {[%emt 0:02:30]} 13. Bb5+ {[%emt 0:02:34]} Kf8 {[%emt 0:02:50]} 14. Rc1 {[%emt 0:08:20]} Qe7 {[%emt 0:08:07]} 15. Qc2 {[%emt 0:13:45]} Bb6 {[%emt 0:06:15]} 16. Nd4 {[%emt 0:08:26]} ({White should try} 16. Rfd1 $14) 16... a6 {[%emt 0:03:03]} 17. Bd3 {[%emt 0:06:49]} g6 {[%emt 0:02:04]} 18. Rfd1 {[%emt 0:10:43]} Kg7 {[%emt 0:04:24]} 19. Ne2 {[%emt 0:03:58]} Rhd8 {[%emt 0:05:05]} 20. Ng3 {[%emt 0:04:06]} Qe6 {[%emt 0:03:32]} 21. e4 {[%emt 0:05:42]} (21. Ne2 $11 {keeps the balance.}) 21... Ng4 {[%emt 0:04:54]} (21... dxe4 $17 22. Bxe4 Ng4 23. Qb2+ f6) 22. Rf1 $2 {[%emt 0:04:26]} (22. Qb2+ $17 {was worth a try.} Kg8 23. Rf1) 22... Qe5 {[%emt 0:01:50]} 23. exd5 {[%emt 0:03:12] [#]} Rxd5 $2 {[%emt 0:06:18]} (23... Qf4 $1 $19 24. Rce1 {Black should play} Rxd5 $1 $19 25. Bc4 {[#]} Qh6 $3 {[%mdl 512]}) 24. Rce1 $2 {[%emt 0:00:50] [#]} (24. Be2 $15 Rc5 25. Qe4 Rxc1 26. Qxe5+ Nxe5 27. Rxc1) 24... Qd6 {[%emt 0:00:50]} 25. Bc4 {[%emt 0:00:35]} Rd2 {[%emt 0:01:11]} 26. Qc3+ {[%emt 0:00:34]} f6 {[%emt 0:00:29]} ({Black should play} 26... Qd4 $17 27. Qxd4+ Bxd4) 27. Be2 $2 {[%emt 0:00:48]} (27. Re6 $11 Qd4 28. Re7+ Kh8 29. Qxd4 Bxd4 30. Ne4 Rxa2 31. Rd7) 27... Nxf2 {[%emt 0:12:21]} 28. Rxf2 {[%emt 0:00:28] [#]} Bxf2+ {[%emt 0:00:17]} ({Better is} 28... Re8 $1 $17 29. Qf3 Bxf2+ 30. Qxf2 Rxa2) 29. Kxf2 {[%emt 0:00:20]} Re8 {[%emt 0:01:34]} 30. Qf3 {[%emt 0:00:50]} (30. Kf1 $15) 30... Qb6+ {[%emt 0:00:51]} ({Black should try} 30... Qd4+ 31. Kf1 Re7) 31. Kf1 {[%emt 0:00:12]} Rxa2 {[%emt 0:00:39]} 32. Rd1 $17 {[%emt 0:00:31]} Re7 {[%emt 0:01:53]} (32... Qb4 $17) 33. Qg4 {[%emt 0:00:41]} Qc5 {[%emt 0:02:21]} 34. Qf3 {[%emt 0:00:58]} h5 {[%emt 0:04:06]} 35. h4 {[%emt 0:00:50]} Qb4 {[%emt 0:00:10]} 36. Bc4 {[%emt 0:00:36]} b5 {[%emt 0:00:32]} 37. Nxh5+ {[%emt 0:00:39]} gxh5 {[%emt 0:02:12]} 38. Qg3+ {[%emt 0:00:46]} Kh6 {[%emt 0:00:47]} 39. Qf4+ {[%emt 0:00:12]} Kg7 1/2-1/2

[Event "CZE-ch U12 2020"]
[Site "Kouty nad Desnou"]
[Date "2020.03.09"]
[Round "3.10"]
[White "Buchta, Bartolomej"]
[Black "Hobza, Richard"]
[Result "1/2-1/2"]
[ECO "B33"]
[WhiteElo "1508"]
[BlackElo "1251"]
[Annotator "NA"]
[PlyCount "62"]
[EventDate "2020.03.07"]
[EventCountry "CZE"]
[SourceTitle "playchess.com"]
[Source "ChessBase"]
[SourceQuality "1"]
[TimeControl "5400+30"]

1. e4 {[%emt 0:00:00]} c5 {[%emt 0:00:00]} 2. Nf3 {[%emt 0:00:00]} Nc6 {[%emt 0:00:00]} 3. d4 {[%emt 0:00:00]} cxd4 {[%emt 0:00:17]} 4. Nxd4 {[%emt 0:00:09]} Nf6 {[%emt 0:00:25]} 5. Nc3 {[%emt 0:00:12]} g6 {[%emt 0:01:32]} 6. Be3 {[%emt 0:00:36]} Bg7 {[%emt 0:03:31]} 7. f3 {[%emt 0:00:30]} d5 {[%emt 0:02:33]} 8. Nxc6 {[%emt 0:04:19]} bxc6 {[%emt 0:00:24]} 9. exd5 {[%emt 0:03:28]} cxd5 {[%emt 0:05:26]} 10. Be2 {[%emt 0:15:58]} O-O {[%emt 0:04:28]} 11. O-O {[%emt 0:00:26]} Bb7 {[%emt 0:05:13]} 12. f4 {[%emt 0:10:01]} a6 {[%emt 0:04:35]} 13. Bf3 {[%emt 0:03:53]} e6 {[%emt 0:05:51]} 14. Na4 {[%emt 0:03:29]} Bc6 {[%emt 0:04:41]} 15. Nc5 {[%emt 0:02:02]} Nd7 {[%emt 0:03:49]} 16. c3 {[%emt 0:04:48]} Nxc5 17. Bxc5 {[%emt 0:00:09]} Re8 {[%emt 0:03:45]} 18. Qd2 {[%emt 0:04:43]} Qc7 {[%emt 0:05:56]} 19. Bd4 {[%emt 0:03:05]} Rab8 {[%emt 0:04:23]} 20. Bxg7 {[%emt 0:00:29]} Kxg7 {[%emt 0:00:12]} 21. Kh1 {[%emt 0:06:00]} Qb6 {[%emt 0:06:53]} 22. b3 {[%emt 0:02:22]} Kg8 {[%emt 0:07:06]} 23. Rae1 {[%emt 0:07:43]} Rec8 {[%emt 0:09:28]} 24. f5 {[%emt 0:10:17]} exf5 {[%emt 0:03:21]} 25. Re5 {[%emt 0:01:42]} Re8 {[%emt 0:05:31]} 26. Rfe1 {[%emt 0:05:11]} Rxe5 {[%emt 0:02:17]} 27. Rxe5 {[%emt 0:00:02]} Rd8 {[%emt 0:02:55]} 28. Bxd5 {[%emt 0:02:17]} Qc7 {[%emt 0:03:43]} 29. Qd4 {[%emt 0:06:02]} Bxd5 {[%emt 0:01:01]} 30. Rxd5 {[%emt 0:00:11]} Rxd5 {[%emt 0:00:20]} 31. Qxd5 {[%emt 0:00:07]} Qxc3 {[%emt 0:00:14]} 1/2-1/2

[Event "CZE-ch U12 2020"]
[Site "Kouty nad Desnou"]
[Date "2020.03.09"]
[Round "3.11"]
[White "Tesar, Jakub"]
[Black "Sigut, Ondrej"]
[Result "0-1"]
[ECO "B34"]
[WhiteElo "1446"]
[BlackElo "1274"]
[Annotator "NA"]
[PlyCount "36"]
[EventDate "2020.03.07"]
[EventCountry "CZE"]
[SourceTitle "playchess.com"]
[Source "ChessBase"]
[SourceQuality "1"]
[TimeControl "5400+30"]

1. e4 {[%emt 0:00:00]} c5 {[%emt 0:00:00]} 2. Nf3 {[%emt 0:00:00]} Nc6 {[%emt 0:00:00]} 3. d4 {[%emt 0:00:00]} cxd4 {[%emt 0:00:00]} 4. Nxd4 {[%emt 0:00:07]} g6 {[%emt 0:00:06]} 5. Nc3 {[%emt 0:00:37]} Bg7 {[%emt 0:00:10]} 6. Be3 {[%emt 0:00:15]} Nf6 {[%emt 0:00:09]} 7. Be2 {[%emt 0:01:35]} O-O {[%emt 0:00:34]} 8. O-O {[%emt 0:00:22]} b6 {[%emt 0:08:02]} 9. f4 {[%emt 0:17:36]} Bb7 {[%emt 0:10:06]} 10. Bf3 {[%emt 0:00:14]} Qc8 {[%emt 0:08:46]} 11. e5 {[%emt 0:22:03]} Ne8 {[%emt 0:05:46]} 12. Nd5 {[%emt 0:02:28]} Qd8 {[%emt 0:04:20]} 13. Qd3 {[%emt 0:15:51]} Nc7 {[%emt 0:05:29]} 14. Rfd1 {[%emt 0:06:27]} Nxd5 {[%emt 0:05:35]} 15. Bxd5 {[%emt 0:05:24]} Nb4 {[%emt 0:05:09]} 16. Bxb7 {[%emt 0:04:26]} Nxd3 {[%emt 0:00:13]} 17. Bxa8 {[%emt 0:00:08]} Nxb2 {[%emt 0:00:42]} 18. Re1 {[%emt 0:01:08]} Qxa8 {[%emt 0:00:17]} 0-1

[Event "CZE-ch U12 2020"]
[Site "Kouty nad Desnou"]
[Date "2020.03.09"]
[Round "3.12"]
[White "Matus, Jakub"]
[Black "Babula, Matej"]
[Result "0-1"]
[ECO "C73"]
[WhiteElo "1240"]
[BlackElo "1353"]
[Annotator "NA RC"]
[PlyCount "60"]
[EventDate "2020.03.07"]
[EventCountry "CZE"]
[SourceTitle "playchess.com"]
[Source "ChessBase"]
[SourceQuality "1"]
[TimeControl "5400+30"]

1. e4 {[%emt 0:00:00]} e5 {[%emt 0:00:00]} 2. Nf3 {[%emt 0:00:00]} Nc6 {[%emt 0:00:00]} 3. Bb5 {[%emt 0:00:00]} a6 4. Ba4 {[%emt 0:00:00]} d6 {[%emt 0:00:00]} 5. Bxc6+ {[%emt 0:00:00]} bxc6 {[%emt 0:00:00]} 6. d4 {[%emt 0:00:04]} f6 {[%emt 0:05:37]} 7. Nc3 {[%emt 0:02:13]} Ne7 {[%emt 0:01:21]} 8. Be3 {[%emt 0:02:53]} Ng6 {[%emt 0:01:03]} 9. Qd2 {[%emt 0:01:33]} Be7 {[%emt 0:00:39]} 10. h4 {[%emt 0:02:17]} O-O {[%emt 0:01:16]} 11. Ng1 {[%emt 0:04:35]} f5 {[%emt 0:07:27]} 12. Qe2 {[%emt 0:14:18]} f4 {[%emt 0:02:31]} 13. Bd2 {[%emt 0:00:11]} exd4 {[%emt 0:00:45]} 14. Nd1 {[%emt 0:00:49]} Bxh4 {[%emt 0:07:27]} 15. Qc4+ {[%emt 0:02:05]} Kh8 {[%emt 0:03:49]} 16. Qxd4 {[%emt 0:00:24]} d5 {[%emt 0:07:37]} 17. Nc3 {[%emt 0:03:29]} dxe4 {[%emt 0:03:16]} 18. Qxd8 {[%emt 0:00:40]} Bxd8 {[%emt 0:00:19]} 19. Nxe4 {[%emt 0:01:08]} Bf5 {[%emt 0:01:24]} 20. Nc5 {[%emt 0:04:46]} Bxc2 {[%emt 0:00:33]} 21. Bc3 {[%emt 0:01:04]} Re8+ {[%emt 0:04:17]} 22. Kd2 {[%emt 0:01:16]} Bf5 {[%emt 0:00:18]} 23. Nf3 {[%emt 0:01:58]} Be7 {[%emt 0:01:24]} 24. Nb3 {[%emt 0:01:17]} Rad8+ {[%emt 0:00:51]} 25. Kc1 {[%emt 0:01:34]} Bf6 {[%emt 0:03:09]} 26. Be1 {[%emt 0:05:42]} Ne5 {[%emt 0:02:18]} 27. Nxe5 {[%emt 0:01:46]} Rxe5 {[%emt 0:00:29]} 28. Rf1 {[%emt 0:06:41]} Re2 {[%emt 0:07:13]} 29. Nd2 {[%emt 0:00:37]} Rde8 {[%emt 0:01:27]} 30. Kd1 {[%emt 0:01:01]} Bxb2 {[%emt 0:00:17]} 0-1

[Event "CZE-ch U12 2020"]
[Site "Kouty nad Desnou"]
[Date "2020.03.09"]
[Round "4.2"]
[White "Prazak, Daniel"]
[Black "Zelba, Lukas"]
[Result "1/2-1/2"]
[ECO "E15"]
[WhiteElo "1765"]
[BlackElo "1727"]
[Annotator "NA"]
[PlyCount "62"]
[EventDate "2020.03.07"]
[EventCountry "CZE"]
[SourceTitle "playchess.com"]
[Source "ChessBase"]
[SourceQuality "1"]
[TimeControl "5400+30"]

1. d4 Nf6 {[%emt 0:00:00]} 2. Nf3 {[%emt 0:00:02]} e6 {[%emt 0:00:00]} 3. c4 {[%emt 0:00:32]} b6 {[%emt 0:00:06]} 4. g3 {[%emt 0:00:46]} Bb4+ {[%emt 0:00:14]} 5. Nbd2 {[%emt 0:00:25]} Bb7 {[%emt 0:01:42]} 6. Bg2 {[%emt 0:00:26]} Be7 7. O-O {[%emt 0:01:00]} O-O {[%emt 0:07:07]} 8. Qc2 {[%emt 0:00:58]} c5 {[%emt 0:01:21]} 9. e4 {[%emt 0:06:48]} d5 {[%emt 0:00:47]} 10. exd5 {[%emt 0:01:33]} exd5 {[%emt 0:00:08]} 11. dxc5 {[%emt 0:01:06]} Bxc5 {[%emt 0:00:10]} 12. b3 {[%emt 0:02:02]} Qc7 {[%emt 0:01:16]} 13. Bb2 {[%emt 0:03:45]} Nbd7 {[%emt 0:00:12]} 14. Rac1 {[%emt 0:02:49]} Rac8 {[%emt 0:00:36]} 15. Rfd1 {[%emt 0:05:40]} b5 {[%emt 0:03:21]} 16. Qf5 {[%emt 0:12:14]} bxc4 {[%emt 0:00:58]} 17. Bxf6 {[%emt 0:02:34]} Nxf6 {[%emt 0:00:06]} 18. bxc4 {[%emt 0:01:19]} Qb6 {[%emt 0:00:34]} 19. Ne5 {[%emt 0:03:44]} g6 {[%emt 0:04:33]} 20. Qf4 {[%emt 0:03:54]} Qd6 {[%emt 0:08:54]} 21. Nd3 {[%emt 0:03:59]} Qxf4 {[%emt 0:04:17]} 22. Nxf4 {[%emt 0:00:11]} Ne4 {[%emt 0:01:16]} 23. Nxe4 {[%emt 0:01:27]} dxe4 {[%emt 0:00:11]} 24. Rb1 {[%emt 0:05:32]} Ba6 {[%emt 0:02:52]} 25. Bxe4 {[%emt 0:01:39]} Bxc4 {[%emt 0:01:58]} 26. Bd5 {[%emt 0:00:54]} Ba6 {[%emt 0:01:01]} 27. Bb7 {[%emt 0:00:33]} Bxb7 {[%emt 0:00:32]} 28. Rxb7 {[%emt 0:00:00]} Rcd8 {[%emt 0:00:37]} 29. Rdd7 {[%emt 0:04:54]} Rxd7 {[%emt 0:02:30]} 30. Rxd7 {[%emt 0:00:22]} Re8 {[%emt 0:04:22]} 31. Nd3 {[%emt 0:03:11]} Bb6 {[%emt 0:01:00]} 1/2-1/2

[Event "CZE-ch U12 2020"]
[Site "Kouty nad Desnou"]
[Date "2020.03.09"]
[Round "4.3"]
[White "Setina, Vaclav"]
[Black "Fizer, Marek"]
[Result "0-1"]
[ECO "B14"]
[WhiteElo "1507"]
[BlackElo "1907"]
[Annotator "ChessBase"]
[PlyCount "70"]
[EventDate "2020.03.07"]
[EventCountry "CZE"]
[SourceTitle "playchess.com"]
[Source "ChessBase"]
[SourceQuality "1"]
[TimeControl "5400+30"]

1. e4 {[%emt 0:00:00]} c6 {[%emt 0:00:00]} 2. d4 {[%emt 0:00:00]} d5 {[%emt 0:00:00]} 3. exd5 {[%emt 0:00:00]} cxd5 {[%emt 0:00:00]} 4. c4 {[%emt 0:00:00]} Nf6 {[%emt 0:00:00]} 5. Nc3 {[%emt 0:00:00]} g6 {[%emt 0:00:20]} 6. Bg5 {[%emt 0:03:12]} Bg7 {[%emt 0:00:23]} 7. c5 {[%emt 0:05:10]} O-O {[%emt 0:00:55]} 8. h3 {[%emt 0:02:14]} Re8 {[%emt 0:06:44]} 9. Nf3 {[%emt 0:01:16]} Ne4 {[%emt 0:03:24]} 10. Qc1 {[%emt 0:18:59]} b6 {[%emt 0:04:08]} 11. cxb6 {[%emt 0:04:31]} axb6 {[%emt 0:01:42]} 12. Bb5 {[%emt 0:01:04]} Bd7 {[%emt 0:02:26]} 13. Bxd7 {[%emt 0:00:04]} Qxd7 {[%emt 0:00:34]} 14. O-O {[%emt 0:00:14]} Nc6 {[%emt 0:05:44]} 15. Be3 {[%emt 0:04:26]} Reb8 {[%emt 0:14:16]} 16. Qc2 {[%emt 0:05:05]} f5 {[%emt 0:05:26]} 17. Qb3 {[%emt 0:05:06]} e6 {[%emt 0:00:44]} 18. Rac1 {[%emt 0:06:05]} Na5 {[%emt 0:01:15]} 19. Qb5 {[%emt 0:10:27]} Qxb5 {[%emt 0:06:53]} 20. Nxb5 {[%emt 0:00:04]} Nc4 {[%emt 0:00:37]} 21. Nc7 {[%emt 0:00:19]} Rxa2 {[%emt 0:00:16]} 22. Nxe6 {[%emt 0:00:33]} Rxb2 {[%emt 0:00:44]} 23. Bf4 {[%emt 0:02:28]} Rc8 {[%emt 0:03:04]} 24. Nc7 {[%emt 0:07:55]} Nf6 {[%emt 0:01:28]} 25. Be5 {[%emt 0:00:49]} Bh6 {[%emt 0:08:55]} 26. Bxf6 {[%emt 0:05:27]} Rxc7 {[%emt 0:01:01]} 27. Rb1 {[%emt 0:00:42]} b5 {[%emt 0:03:16]} 28. Rxb2 {[%emt 0:01:08]} Nxb2 {[%emt 0:00:02]} 29. Rb1 {[%emt 0:00:01]} Rc1+ {[%emt 0:00:44]} 30. Rxc1 {[%emt 0:00:02]} Bxc1 {[%emt 0:00:02]} 31. Bg5 {[%emt 0:01:49]} f4 {[%emt 0:02:07]} 32. Ne5 {[%emt 0:01:15]} b4 {[%emt 0:01:20]} 33. Kf1 {[%emt 0:05:16]} b3 {[%emt 0:01:24]} 34. Ke1 {[%emt 0:00:06]} Na4 {[%emt 0:00:46]} 35. Kd1 {[%emt 0:00:35]} b2 {[%emt 0:00:09]} 0-1

[Event "CZE-ch U12 2020"]
[Site "Kouty nad Desnou"]
[Date "2020.03.09"]
[Round "4.4"]
[White "Day, Tobias"]
[Black "Soucek, Jan"]
[Result "1-0"]
[ECO "B23"]
[WhiteElo "1837"]
[BlackElo "1872"]
[Annotator "NA"]
[PlyCount "119"]
[EventDate "2020.03.07"]
[EventCountry "CZE"]
[SourceTitle "playchess.com"]
[Source "ChessBase"]
[SourceQuality "1"]
[TimeControl "5400+30"]

1. e4 {[%emt 0:00:00]} c5 {[%emt 0:00:00]} 2. Nc3 {[%emt 0:00:00]} e6 {[%emt 0:00:00]} 3. f4 {[%emt 0:00:42]} Nc6 {[%emt 0:00:34]} 4. Nf3 {[%emt 0:01:09]} Nge7 {[%emt 0:05:17]} 5. g3 {[%emt 0:01:31]} Ng6 {[%emt 0:23:10]} 6. Bg2 {[%emt 0:01:32] B23: Closed Sicilian: Lines without g3.} Be7 {[%emt 0:00:26]} 7. O-O {[%emt 0:01:39]} O-O {[%emt 0:00:21] [#]} 8. f5 $146 {[%emt 0:05:52]} ({Predecessor:} 8. d3 f5 9. Be3 b6 10. Qd2 Rb8 11. Rae1 b5 12. h3 d6 13. Kh2 Qc7 14. a3 {0-1 (43) Albert,E (1166)-Muedder,M (1631) Willingen 2016}) 8... Nge5 $1 {[%emt 0:02:39]} 9. Nxe5 {[%emt 0:01:10]} Nxe5 {[%emt 0:00:14]} 10. b3 {[%emt 0:01:30]} Bf6 {[%emt 0:01:44]} 11. Bb2 {[%emt 0:01:21]} b6 {[%emt 0:02:20]} 12. d4 {[%emt 0:07:25]} cxd4 {[%emt 0:01:46]} 13. Ne2 {[%emt 0:00:28]} Ba6 {[%emt 0:07:22]} 14. Bxd4 {[%emt 0:01:38] [#]} Bxe2 $1 {[%emt 0:01:22]} 15. Qxe2 {[%emt 0:00:48]} Nf3+ {[%emt 0:00:22]} 16. Bxf3 {[%emt 0:00:37]} Bxd4+ {[%emt 0:00:07]} 17. Kh1 {[%emt 0:00:46]} Bxa1 {[%emt 0:00:19]} 18. Rxa1 {[%emt 0:00:12]} Rc8 {[%emt 0:01:58]} 19. Rd1 {[%emt 0:01:05]} Qc7 {[%emt 0:01:08]} 20. c4 $19 {[%emt 0:00:52]} Rfd8 {[%emt 0:03:19]} 21. Rd4 {[%emt 0:04:15]} Qe5 {[%emt 0:05:40]} 22. Qd3 {[%emt 0:00:57]} d6 {[%emt 0:00:30]} 23. Bg4 {[%emt 0:03:04]} Rc6 {[%emt 0:03:59]} 24. Kg2 {[%emt 0:03:34]} Rdc8 {[%emt 0:02:44]} 25. a4 {[%emt 0:08:10]} a6 {[%emt 0:01:28]} 26. b4 {[%emt 0:03:05]} h6 {[%emt 0:07:17]} 27. fxe6 {[%emt 0:03:35]} fxe6 {[%emt 0:07:19]} 28. b5 {[%emt 0:00:33]} axb5 {[%emt 0:05:26]} 29. axb5 {[%emt 0:00:22]} R6c7 {[%emt 0:01:02]} 30. Rxd6 {[%emt 0:01:07]} Re7 {[%emt 0:02:33]} 31. Rxb6 {[%emt 0:01:18]} Ra8 {[%emt 0:00:45]} 32. Ra6 {[%emt 0:03:02]} Rxa6 {[%emt 0:05:08]} 33. bxa6 {[%emt 0:00:38]} Qb2+ {[%emt 0:05:51]} 34. Kh3 {[%emt 0:01:16]} Qb6 {[%emt 0:01:06]} 35. e5 {[%emt 0:12:18]} Rc7 {[%emt 0:01:43]} 36. Qd6 {[%emt 0:02:53]} Qb8 {[%emt 0:00:26]} 37. Bxe6+ {[%emt 0:00:32]} Kh8 {[%emt 0:00:06]} 38. Bg4 {[%emt 0:01:49]} Qa7 {[%emt 0:00:56]} 39. Qf8+ {[%emt 0:04:52]} Kh7 {[%emt 0:00:07]} 40. e6 {[%emt 0:03:48]} Re7 {[%emt 0:00:14]} 41. c5 {[%emt 0:06:11]} Qxc5 {[%emt 0:00:55]} 42. Qf5+ {[%emt 0:00:24]} Qxf5 {[%emt 0:00:14]} 43. Bxf5+ {[%emt 0:00:04]} g6 {[%emt 0:00:31]} 44. Be4 {[%emt 0:00:29]} Ra7 {[%emt 0:00:32]} 45. e7 {[%emt 0:00:17]} Rxe7 {[%emt 0:00:14]} 46. Bb7 {[%emt 0:00:09]} Re8 {[%emt 0:00:28]} 47. a7 {[%emt 0:00:14]} Kg7 {[%emt 0:00:05]} 48. a8=Q {[%emt 0:00:35]} Rxa8 {[%emt 0:00:01]} 49. Bxa8 {[%emt 0:00:09]} Kf6 {[%emt 0:00:11]} 50. Kg4 {[%emt 0:01:55]} Ke5 {[%emt 0:00:40]} 51. h4 {[%emt 0:00:56]} Kf6 {[%emt 0:01:02]} 52. Be4 {[%emt 0:01:37]} Kg7 {[%emt 0:00:33]} 53. h5 {[%emt 0:01:44]} g5 {[%emt 0:00:06]} 54. Kf5 {[%emt 0:00:04]} Kf7 {[%emt 0:00:17]} 55. Bd5+ {[%emt 0:00:04]} Kg7 {[%emt 0:00:08]} 56. Be6 {[%emt 0:00:14]} Kh7 {[%emt 0:00:11]} 57. Kf6 {[%emt 0:00:15]} Kh8 {[%emt 0:00:07]} 58. Kg6 {[%emt 0:00:07]} g4 {[%emt 0:00:08]} 59. Bxg4 {[%emt 0:00:06]} Kg8 {[%emt 0:00:05]} 60. Kxh6 {[%emt 0:00:05]} 1-0

[Event "CZE-ch U12 2020"]
[Site "Kouty nad Desnou"]
[Date "2020.03.09"]
[Round "4.5"]
[White "Veverka, Vladimir"]
[Black "Hladky, Tadeas"]
[Result "1/2-1/2"]
[ECO "B02"]
[WhiteElo "1656"]
[BlackElo "1773"]
[Annotator "NA"]
[PlyCount "106"]
[EventDate "2020.03.07"]
[EventCountry "CZE"]
[SourceTitle "playchess.com"]
[Source "ChessBase"]
[SourceQuality "1"]
[TimeControl "5400+30"]

1. e4 {[%emt 0:00:00]} Nf6 {[%emt 0:00:00]} 2. Nc3 {[%emt 0:03:09]} d5 {[%emt 0:00:03]} 3. exd5 {[%emt 0:00:11]} Nxd5 {[%emt 0:00:06]} 4. Nxd5 {[%emt 0:01:35]} Qxd5 {[%emt 0:00:05]} 5. d4 {[%emt 0:00:34]} Bf5 {[%emt 0:00:19]} 6. c3 {[%emt 0:08:53]} e6 {[%emt 0:00:29]} 7. Nf3 {[%emt 0:10:16]} Be7 {[%emt 0:00:39]} 8. Bd3 {[%emt 0:02:28]} Bxd3 {[%emt 0:00:12]} 9. Qxd3 {[%emt 0:00:10]} O-O {[%emt 0:00:36]} 10. O-O {[%emt 0:01:13]} Na6 {[%emt 0:02:20]} 11. Be3 {[%emt 0:01:11]} c5 {[%emt 0:01:09]} 12. Rfd1 {[%emt 0:00:50]} c4 {[%emt 0:01:15]} 13. Qe2 {[%emt 0:03:09]} Nc7 {[%emt 0:03:19]} 14. h3 {[%emt 0:01:58]} b5 {[%emt 0:01:04]} 15. Bf4 {[%emt 0:04:56]} Rfc8 {[%emt 0:02:33]} 16. a3 {[%emt 0:02:40]} Ne8 {[%emt 0:02:42]} 17. Qe5 {[%emt 0:03:36]} Nf6 {[%emt 0:00:39]} 18. Bg5 {[%emt 0:03:49]} Bd6 {[%emt 0:02:22]} 19. Qxd5 {[%emt 0:02:03]} Nxd5 {[%emt 0:00:05]} 20. Ne1 {[%emt 0:03:45]} a5 {[%emt 0:01:04]} 21. Bd2 {[%emt 0:01:33]} Kf8 {[%emt 0:01:21]} 22. Nc2 {[%emt 0:01:38]} Ke7 {[%emt 0:01:51]} 23. g3 {[%emt 0:01:34]} Rcb8 {[%emt 0:02:24]} 24. Ne3 {[%emt 0:01:49]} Nxe3 {[%emt 0:00:41]} 25. Bxe3 {[%emt 0:01:39]} b4 {[%emt 0:00:18]} 26. axb4 {[%emt 0:01:10]} axb4 {[%emt 0:01:03]} 27. Bg5+ {[%emt 0:05:40]} f6 {[%emt 0:00:57]} 28. Bd2 {[%emt 0:02:03]} b3 {[%emt 0:00:19]} 29. Kf1 {[%emt 0:02:36]} Ra2 {[%emt 0:00:25]} 30. Ke2 {[%emt 0:06:20]} Rxb2 {[%emt 0:00:28]} 31. Ra7+ {[%emt 0:01:05]} Kf8 {[%emt 0:00:13]} 32. Ra6 {[%emt 0:05:27]} Be7 {[%emt 0:01:26]} 33. Rxe6 {[%emt 0:01:17]} Ra2 {[%emt 0:00:35]} 34. Rb1 {[%emt 0:01:35]} Ba3 {[%emt 0:06:18]} 35. Kd1 {[%emt 0:05:21]} Re8 {[%emt 0:01:52]} 36. Rc6 {[%emt 0:06:09]} b2 {[%emt 0:00:28]} 37. Be3 {[%emt 0:00:55]} f5 {[%emt 0:02:45]} 38. Rxc4 {[%emt 0:02:33]} Ra1 {[%emt 0:00:19]} 39. Kc2 {[%emt 0:00:29]} g5 {[%emt 0:00:07]} 40. Rc6 {[%emt 0:00:54]} Kf7 {[%emt 0:01:00]} 41. Rc7+ {[%emt 0:00:59]} Kg8 {[%emt 0:00:59]} 42. d5 {[%emt 0:01:07]} f4 {[%emt 0:00:25]} 43. gxf4 {[%emt 0:00:15]} Rxb1 {[%emt 0:00:50]} 44. Kxb1 {[%emt 0:00:09]} gxf4 {[%emt 0:00:06]} 45. Bd2 {[%emt 0:01:09]} Re2 {[%emt 0:00:31]} 46. Rc8+ {[%emt 0:00:11]} Kf7 {[%emt 0:00:29]} 47. Rc7+ {[%emt 0:00:45]} Kf6 {[%emt 0:00:40]} 48. Rc6+ {[%emt 0:00:32]} Kf7 {[%emt 0:01:37]} 49. Rc7+ {[%emt 0:00:25]} Ke8 {[%emt 0:01:38]} 50. Rc8+ {[%emt 0:00:30]} Kd7 {[%emt 0:00:05]} 51. Ra8 {[%emt 0:00:25]} Rxd2 {[%emt 0:00:54]} 52. Rxa3 {[%emt 0:00:25]} Kd6 {[%emt 0:00:47]} 53. c4 {[%emt 0:00:43]} Rxf2 {[%emt 0:01:37]} 1/2-1/2